Cogmind - Beta 16.1 @@@ ROGUE MODE // 2026.03.25 @ 17:03:12 Player: RecursiveCharlatan Result: Destroyed by 50-K17(R) with Subdweller Laser Performance ------------- Evolutions (0) 0 Regions Visited (2) 400 Robots Destroyed (35) 175 Value Destroyed (1042) 1042 Prototype IDs (13) 260 Alien Tech Used (0) 0 Bonus (0) 0 TOTAL SCORE: 1877 Bonus ------- None Cogmind --------- Core Integrity 0/250 Matter 286/300 Energy 100/100 System Corruption 0% Temperature Cool (6) Movement Treading (340) Ox2 Location -10/Subcaves Parts ------- > --- POWER (1) -------- (None) > --- PROPULSION (2) --- Light Treads Spiked Treads > --- UTILITY (2) ------ Huge Storage Unit Makeshift Light Armor Plating > --- WEAPON (2) ------- Battle Rifle Barrage Gun > --- INVENTORY (25) --- Ion Engine Light Treads Light Treads Light Treads Improved Heat Sink Improved Heat Sink Small Storage Unit Signal Interpreter Tower Shield EM Pulse Gun Salvaging Laser Salvaging Laser Light Assault Rifle Light Assault Rifle Light Assault Rifle Subdweller Machine Gun Light Cannon Grenade Launcher Flail Ripper Peak State ------------ > --- POWER ------------ Ion Engine > --- PROPULSION ------- Spiked Treads Spiked Treads > --- UTILITY ---------- Huge Storage Unit Makeshift Light Armor Plating > --- WEAPON ----------- Battle Rifle Flail > --- INVENTORY -------- Ion Engine Light Treads Light Treads Light Treads Light Treads Improved Heat Sink Improved Heat Sink Small Storage Unit Signal Interpreter Tower Shield EM Pulse Gun Salvaging Laser Salvaging Laser Light Assault Rifle Light Assault Rifle Light Assault Rifle Battle Rifle Subdweller Machine Gun Barrage Gun Light Cannon Grenade Launcher [Rating: 18] Favorites ----------- Power Ion Engine Engine Ion Engine Propulsion Spiked Treads Treads Spiked Treads Leg Aluminum Leg Utility Huge Storage Unit Device Seismic Detector Storage Huge Storage Unit Protection Makeshift Thermal Plating Weapon Battle Rifle Energy Gun Salvaging Laser Ballistic Gun Battle Rifle Ballistic Cannon Light Cannon Launcher Grenade Launcher Impact Weapon Flail Build | -11 -10 -10 ------- Run | Yrd Mat Sub Slots Evolved . | . . . Power . | . . . Propulsion . | . . . Utility . | . . . Weapon . | . . . Parts Attached 29 | 9 8 12 Power 2 | 1 1 . Engine 2 | 1 1 . Core . | . . . Reactor . | . . . Propulsion 10 | 4 2 4 Treads 6 | 2 . 4 Leg 4 | 2 2 . Wheel . | . . . Hover . | . . . Flight . | . . . Utility 5 | 2 1 2 Device 1 | 1 . . Storage 2 | 1 1 . Processor . | . . . Hackware . | . . . Protection 2 | . . 2 Artifact . | . . . Weapon 12 | 2 4 6 Energy Gun 2 | 1 . 1 Energy Cannon . | . . . Ballistic Gun 7 | 1 2 4 Ballistic Cannon 1 | . 1 . Launcher 1 | . . 1 Special Weapon . | . . . Impact Weapon 1 | . 1 . Slashing Weapon . | . . . Piercing Weapon . | . . . Special Melee Weapon . | . . . Unidentified Prototypes . | . . . Parts Lost 9 | . 2 7 Power 2 | . 1 1 Propulsion 2 | . . 2 Utility 2 | . 1 1 Weapon 3 | . . 3 Highest Loss Streak 2 | . 1 2 To Critical Strikes 2 | . . 2 Average Backups 17 | 2 7 20 Power . | . 1 1 Propulsion 3 | 1 1 3 Utility 3 | . 1 4 Weapon 9 | . 3 11 Tool/Special . | . . . Unused Backups 12 | . 1 11 Power 1 | . . 1 Propulsion 2 | . 1 1 Utility 4 | . . 4 Weapon 5 | . . 5 Tool/Special . | . . . Average Slot Usage (%) 96 | . 87 97 Engine 13 | . 13 13 Treads 26 | . 18 28 Leg 1 | . 9 . Storage 14 | . 14 14 Protection 10 | . . 12 Energy Gun 2 | . 3 1 Ballistic Gun 15 | . 16 14 Ballistic Cannon 3 | . . 4 Impact Weapon 6 | . 7 6 Peak Build Rating 18 | 7 8 18 Average Rating 14 | 5 7 15 On Entrance 4 | . 7 7 Avg Prop Armor Cover (%) . | . . . Naked Turns . | . . . Heaviest Build 95 | 11 89 95 Greatest Support 40 | 40 40 40 Greatest Overweight (x) 2 | 2 2 2 Average Overweight (x) 1 | . . 2 Largest Inventory Capacity 25 | 8 25 25 Average Capacity 22 | 7 11 25 Most Carried 22 | 4 12 22 Average Carried 18 | 3 7 20 Final Capacity 25 | 8 25 25 Final Carried 21 | 4 12 21 Class Distribution -------------------- 55% | Mutant 44% | Derelict-Mutant Dominant Class ---------------- Mutant | -10/Materials Derelict-Mutant | -10/Subcaves Resources | -11 -10 -10 ----------- Run | Yrd Mat Sub Matter Collected 926 | 224 193 509 Remotely . | . . . Salvage Created 1316 | 88 678 550 Parts 71 | 5 27 39 Haulers Intercepted . | . . . Recyclers Shooed 1 | . 1 . Parts Field Recycled . | . . . Retrieved Matter . | . . . Parts Self-Destructed 10 | . . 10 Prevented . | . . . Parts Restored . | . . . Kills | -11 -10 -10 ------- Run | Yrd Mat Sub Combat Hostiles Destroyed 30 | . 14 16 Melee 2 | . 2 . Guns 23 | . 10 13 Cannons 2 | . . 2 AOE 1 | . . 1 Classes Destroyed 5 | 2 2 1 Tunneler 2 | 2 . . Recycler 3 | 1 2 . Swarmer 5 | . 3 2 Grunt 11 | . 11 . Subdweller 14 | . . 14 Best Kill Streak 6 | 2 6 3 Combat Bots Only 5 | . 5 3 Max Kills in Single Turn 1 | 1 1 1 Gunslinging . | . . . Exploded 1 | . . 1 Melee 1 | . 1 . Uniques/NPCs Destroyed . | . . . Combat | -11 -10 -10 -------- Run | Yrd Mat Sub Hostile Shots Fired 142 | . 55 87 Missed 45 | . 14 31 Hits 97 | . 41 56 Projectile 97 | . 41 56 AOE 4 | . . 4 Critical Strikes 4 | . 2 2 Damage Taken 1742 | . 430 1312 Core 267 | . 54 213 Absorbed by Shields . | . . . Ignored by Resistances 41 | . . 41 Core Remaining (%) 100 | 100 . . Volleys Fired 97 | 10 34 53 Largest 2 | 2 2 2 Hottest 60 | 60 60 60 Shots Fired 192 | 20 68 104 Gun 165 | 20 68 77 Cannon 26 | . . 26 Launcher 1 | . . 1 Special . | . . . Kinetic 152 | 10 46 96 Thermal 39 | 10 22 7 Explosive 1 | . . 1 Electromagnetic . | . . . Robot Hit Streak 28 | 3 16 28 Robot Miss Streak 2 | 1 2 2 Penetration Max . | . . . Secondary Targets 2 | . 2 . Max Gunslinging Chain 1 | . 1 . Shots Hit Robots 160 | 12 61 87 Core Hits 64 | 5 31 28 Critical Kills . | . . . Critical Parts Destroyed . | . . . Critical Strikes 2 | . . 2 Destroy 1 | . . 1 Blast 1 | . . 1 Melee Attacks 34 | . 17 17 Impact 34 | . 17 17 Slashing . | . . . Piercing . | . . . Sneak Attacks . | . . . Combat Hostiles . | . . . Follow-up Attacks . | . . . Damage Inflicted 2424 | 115 809 1500 Guns 1755 | 115 488 1152 Cannons 335 | . . 335 Explosions 13 | . . 13 Melee 321 | . 321 . Ramming . | . . . Kinetic 1768 | 72 279 1417 Thermal 322 | 43 209 70 Explosive 13 | . . 13 Electromagnetic . | . . . Impact 321 | . 321 . Slashing . | . . . Piercing . | . . . Highest Corruption . | . . . Average Corruption . | . . . Corruption Purged . | . . . Corruption Blocked . | . . . Overload Shots . | . . . Overflow Damage 50 | . 50 . Projectiles . | . . . Explosions . | . . . Melee 50 | . 50 . Knockbacks 7 | . . 7 Impact . | . . . Kinetic 7 | . . 7 Secondary . | . . . Self-Inflicted Damage . | . . . Shots . | . . . Rammed . | . . . Targets Rammed . | . . . Kicked . | . . . Crushed . | . . . Highest Temperature 106 | 40 106 . Average Temperature 37 | 19 42 . Received Heat Transfer 396 | . 219 177 Siege Activations . | . . . Martial Activations . | . . . Shielding Activations . | . . . Robots Disrupted . | . . . Combat Hostiles . | . . . Robots Corrupted 2 | . 2 . Combat Hostiles 2 | . 2 . Parts Fried 2 | . 2 . Impact Corruptions 3 | . 3 . Robots Melted . | . . . Combat Hostiles . | . . . Parts Melted 2 | . . 2 Heat Transferred 750 | 100 475 175 Parts Sabotaged . | . . . Parts Stolen . | . . . Parts Stripped . | . . . Power Chain Reactions . | . . . Alert | -11 -10 -10 ------- Run | Yrd Mat Sub Maximum Alert Level . | . . . Low Security (%) 100 | 100 100 . Level 1 . | . . . Level 2 . | . . . Level 3 . | . . . Level 4 . | . . . Level 5 . | . . . High Security . | . . . Max Security . | . . . Peak Influence 160 | 10 160 . Initial . | . . . Average 60 | . 67 . Influence Increases 462 | 15 407 40 Destroy 0b10 Robot/C 320 | . 280 40 Destroy 0b10 Robot/NC 25 | 15 10 . Destroy Leader 60 | . 60 . Successful Hack 22 | . 22 . Select Force Hacks 30 | . 30 . Destroy Structure 5 | . 5 . Influence Decreases 462 | 15 362 85 Entered New Map 22 | . . 22 Time Decay 420 | 15 342 63 Lost Part 20 | . 20 . Squads Dispatched 4 | . 4 . Investigation 3 | . 3 . Extermination . | . . . Reinforcement 1 | . 1 . Assault . | . . . Garrison . | . . . Intercept . | . . . Searches Triggered . | . . . Construction Impeded . | . . . Haulers Reinforced . | . . . Active Scanning Responses . | . . . Cargo Convoy Interrupts . | . . . Stealth | -11 -10 -10 --------- Run | Yrd Mat Sub Distress Signals 2 | . 2 . Communications Jammed . | . . . Distress Signals . | . . . Times Spotted 36 | . 17 19 Peak Tracking Total 5 | . 5 3 Tactical Retreats . | . . . Traps | -11 -10 -10 ------- Run | Yrd Mat Sub Traps Triggered 3 | . 2 1 Indirectly . | . . . Trap Hack Attempts . | . . . Triggered . | . . . Disarmed . | . . . Reprogrammed . | . . . Reused . | . . . Traps Extracted . | . . . Installed . | . . . Triggered . | . . . Machines | -11 -10 -10 ---------- Run | Yrd Mat Sub Machines Disabled 1 | . . 1 Max in Single Turn 1 | . . 1 Machines Repaired . | . . . Machines Dismantled . | . . . Machines Sabotaged . | . . . Overloaded Fab Kills . | . . . Hacking | -11 -10 -10 --------- Run | Yrd Mat Sub Machines Accessed 10 | . 9 1 Terminals 7 | . 7 . Fabricators . | . . . Repair Stations 1 | . 1 . Recycling Units 1 | . 1 . Scanalyzers . | . . . Garrison Access . | . . . Total Hacks 28 | . 27 1 Successful 16 | . 15 1 Failed 12 | . 12 . Catastrophic 1 | . 1 . Database Lockouts . | . . . Manual 19 | . 19 . Terminals 24 | . 24 . Fabricators . | . . . Repair Stations 2 | . 2 . Recycling Units 1 | . 1 . Scanalyzers . | . . . Garrison Access . | . . . Terminal Hacks 7 | . 6 1 Robot Analysis 1 | . 1 . Terminal Index 1 | . 1 . Alert Level 1 | . 1 . Locate Traps 1 | . 1 . Zone Layout 2 | . 2 . Proto ID Catalog 1 | . . 1 Fabricator Hacks . | . . . Repair Station Hacks . | . . . Recycling Unit Hacks . | . . . Scanalyzer . | . . . Garrison Access Hacks . | . . . Unauthorized Hacks 9 | . 9 . Terminals 8 | . 8 . Assimilate 1 | . 1 . Botnet 1 | . 1 . Operators 1 | . 1 . Skim 5 | . 5 . Fabricators . | . . . Repair Stations . | . . . Recycling Units 1 | . 1 . Tunnel 1 | . 1 . Scanalyzers . | . . . Garrison Access . | . . . Data Cores Recovered . | . . . Used . | . . . Hacking Detections 7 | . 7 . Full Trace Events . | . . . Feedback Events . | . . . Feedback Blocked . | . . . Robot Schematics Acquired . | . . . Robots Built . | . . . Authchips . | . . . Time . | . . . Total Robot Build Rating . | . . . Part Schematics Acquired . | . . . Parts Built . | . . . Authchips . | . . . Time . | . . . Total Part Build Rating . | . . . Part Studies Acquired . | . . . Parts Repaired . | . . . Time . | . . . Parts Recycled . | . . . Recycled Matter . | . . . Retrieved Matter . | . . . Retrieved Components . | . . . Parts Scanalyzed . | . . . Part Schematics Acquired . | . . . Parts Damaged . | . . . Bothacking | -11 -10 -10 ------------ Run | Yrd Mat Sub Used RIF Installer . | . . . Robots Hacked . | . . . Non-combat . | . . . Combat . | . . . Robot Hacks Applied . | . . . Relay Couplers Released . | . . . Fabnet Peak Effective % . | . . . Robots Rewired . | . . . Allies Hacked . | . . . Hacks Repelled . | . . . Allies | -11 -10 -10 -------- Run | Yrd Mat Sub Total Allies . | . . . Largest Group . | . . . Highest-Rated Group . | . . . Highest-Rated Ally . | . . . Total Orders . | . . . Ally Attacks . | . . . Total Damage . | . . . Kills . | . . . Allies Corrupted . | . . . Allies Melted . | . . . Intel | -11 -10 -10 ------- Run | Yrd Mat Sub Active Infowar (turns) 192 | 4 188 . Seismic 192 | 4 188 . Robot Analysis Total 1 | . 1 . Derelict Logs Recovered . | . . . Drone Launches . | . . . Drone Recoveries . | . . . Exploration | -11 -10 -10 ------------- Run | Yrd Mat Sub Turns Passed 6660 | 113 1030 5517 Spaces Moved 1910 | 58 492 1360 Core 9 | 9 . . Treads 1653 | 3 290 1360 Legs 248 | 46 202 . Wheels . | . . . Hover . | . . . Flight . | . . . Fastest Speed 50 | 50 120 320 Average Speed 296 | 118 163 351 Slowest Speed 360 | 160 320 360 Overloaded Moves . | . . . Propulsion Burnouts . | . . . Robots Hopped . | . . . Potential Cave-ins . | . . . Cave-ins Triggered . | . . . Exploration Rate (%) 50 | 5 71 75 Regions Visited 2 Branch Regions 1 Pre-discovered Areas 1 | . 1 . Known Exits Taken 1 | . 1 . Unknown Exits Taken 1 | 1 . . Scrap Searched 6 | . . 6 Spaces Dug 10 | . 5 5 Terrain Destroyed 12 | . 5 7 Melee 10 | . 5 5 Projectile . | . . . AOE 2 | . . 2 Terrain Rammed . | . . . Walls Destroyed . | . . . Machines Disabled . | . . . Actions | -11 -10 -10 --------- Run | Yrd Mat Sub Total 2679 | 80 637 1962 Wait 569 | . 67 502 Move 1908 | 57 491 1360 Hop . | . . . Pick Up 21 | 2 9 10 Fast Attach 15 | 9 3 3 Attach 8 | . 3 5 Detach 6 | 2 3 1 Swap 15 | . 4 11 Drop 6 | . 6 . Fire 97 | 10 34 53 Melee 34 | . 17 17 Ram . | . . . Kick . | . . . Crush . | . . . Escape Stasis . | . . . Rewire . | . . . Trap . | . . . Miscellaneous . | . . . Route ------- -11/Scrapyard -10/Materials (discovered 6 exits: *Mat x3 / *Min x2 / *Sub) -10/Subcaves (discovered 1 exit: [*Scr]) History --------- Turn | Location | Event 20 | -11/Scrapyard | Discovered new exit (range 16) 114 | -11/Scrapyard | Entered Materials 115 | -10/Materials | Met a group of wandering Federalists 269 | -10/Materials | Discovered new exit (range 14) 302 | -10/Materials | Build established: Mutant 528 | -10/Materials | Discovered new exit (range 15) 540 | -10/Materials | Discovered new exit (range 16) 751 | -10/Materials | Learned 4 Recycling zone layouts 799 | -10/Materials | Identified exit to Materials 836 | -10/Materials | Learned 2 Storage zone layouts 861 | -10/Materials | Learned location of 1 exit from Storage 875 | -10/Materials | Learned Storage security intel 878 | -10/Materials | Learned location of 3 exits from Materials 884 | -10/Materials | Learned 2 Mines zone layouts 897 | -10/Materials | Identified exit to Subcaves 897 | -10/Materials | Identified exit to Mines 920 | -10/Materials | Learned 4 Subcaves zone layouts 951 | -10/Materials | Learned location of 1 exit from Storage 1144 | -10/Materials | Entered Subcaves 1145 | -10/Subcaves | Continued accompanying wandering Federalists (5) 1145 | -10/Subcaves | Approached by a straggling Scientist 1237 | -10/Subcaves | Lost 5 allies 1353 | -10/Subcaves | Shifting Twisted Machinery released Sub. Monowheel 1354 | -10/Subcaves | Shifting Twisted Machinery released Sub. Monowheel 1439 | -10/Subcaves | Core integrity fell below 50% 2835 | -10/Subcaves | Ambushed by Subdweller buried in earth 2847 | -10/Subcaves | Build established: Derelict-Mutant 3034 | -10/Subcaves | A swath of the cavern ceiling suddenly collapsed 3587 | -10/Subcaves | Scientist uncovered a shortcut to Scraptown 4070 | -10/Subcaves | Shifting Twisted Machinery released Barrage Gun 4579 | -10/Subcaves | Visited 4L-MR0's lab 4620 | -10/Subcaves | Found Tower Shield 5380 | -10/Subcaves | Shifting Twisted Machinery released Ripper 5565 | -10/Subcaves | Build established: Mutant 6457 | -10/Subcaves | Core integrity fell below 20% 6643 | -10/Subcaves | Shifting Twisted Machinery released Shrapnel Trap 6651 | -10/Subcaves | Shifting Twisted Machinery released Sub. Monowheel 6661 | -10/Subcaves | Destroyed by 50-K17(R) with Subdweller Laser Last Messages --------------- 06479_ Subatomizers dissect the Sub. Optics. 06480_ JB-EBK(R) affixes Scrap Shield Fragment to Scrap Shield. 06482_ JB-EBK(R) destroyed. 06490_ Subatomizers dissect the Sub. Optics. 06522_ Acquired 55 matter. 06525_ Acquired 26 matter. 06530_ Subatomizers dissect the Sub. Optics. 06542_ Subatomizers dissect the Sub. Power Source. 06602_ Disposable Heat Sink melted. 06602_ NB-AK8(R) destroyed. 06605_ Acquired 28 matter. 06640_ Subatomizers dissect the Sub. Beam Cannon. Shrapnel Trap falls loose from the Twisted Machinery. Sub. Monowheel falls loose from the Twisted Machinery. Map ----- +----------------------------------------------------+ | ????????????????##" " [&&# " #???????????? | | ?????????????????####""" !& %!" " #???????????? | | ????????????????????#"""##&"[&" " #????????????? | | ????????????????????#""### = """ #????????????? | | ????????????????????#""#?## "" #????????????? | | ?????????????????????""???## "" #????????????? | | ???????????????????????????## "" #????????????? | | ???????????????????????????## "" #????????????? | | ??????????????????????????## """ #????????????? | | ???????????????????? ""#### ""###" #????????????? | | ????????????????????#" """ ""##?# ##????????????? | | ????????????????????# "" "" #####?????????????? | | ???????????????????# """ "##????????????? | | ???????????????????##"""" "" " " #????????????? | | ????????????????????# ""###" #????????????? | | ??????????????????????" ??### ## #???????????? | | ???????????????????????????## ##?? #???????????? | | ????????????????????????####!&& #????#???????????? | | ???????????????????????## #%] #????????????????? | | ???????????????????????# #& ##????????????????? | | ???????????????????????# "#????????????????? | | ???????????????????????# # ###????????????????? | | ???????????????????????# ###??????????????????? | | ???????????????????????## ####?????????????????? | | ????????????????????????# #?????????????????? | | ???????????????????????##@" ##?????????????????? | | ???????????????????????# """"#??????????????????? | | ##### #####?#R #??????????????????? | | # # #??????????????????? | | "" """"?????????????????? | | ""&"""""""""""#???????????????? | | ### # """"### ????????????????? | | #?## ######### ""???# ???????????????? | | ##### ##??## ""???? #????????????????? | | ### ###??## ??"????? #????????????????? | | # ### #???# ???????? ##????????????????? | | ### ##??## ?????????#?????????????????? | | #?## # # ##### ???????????????????????????? | | #?# ## # ## ???????????????????????????? | | #?# #### ???????????????????????????? | | #?# ###??##???????????????????????????? | | #?### ## ## ####?????????????????????????????????? | | ????#########????????????????????????????????????? | | ?????????????????????????????????????????????????? | | ?????????????????????????????????????????????????? | | ?????????????????????????????????????????????????? | | ?????????????????????????????????????????????????? | | ?????????????????????????????????????????????????? | | ?????????????????????????????????????????????????? | | ?????????????????????????????????????????????????? | +----------------------------------------------------+ Best States ------------- Heat Dissipation 25 Energy Generation 10 Energy Capacity 250 Matter Stores 300 Matter Capacity 300 Sight Range 16 Terrain Scan Density 10 Armor Coverage 100 Resistance: TH 10 Evasion (%) 55 Recoil Reduction 2 Item Schematics ----------------- None Robot Schematics ------------------ None Fabricated ------------ Nothing Repaired ---------- Nothing Studied --------- None Alien Tech Used ----------------- None Achievements -------------- None Challenges ------------ None Game ------ Seed GreatBottomlessBeamcaster Manual? 0 Play Time 00:21:56 Cumulative 151.8 hours Start 2026.03.25 @ 12:46:42 End 2026.03.25 @ 17:03:12 Sessions 1 Manual Loads 0 Difficulty Rogue Special Mode None Game No. 277 Rogue 277 Adventurer 0 Explorer 0 Win Type - Total 3 Types 2/0/0/1/0/0/0/0/0/0 Lore% 58 Gallery% 59 Achievement% 45 Wizard Run 0 Options --------- Layout 2 ASCII 0 Keyboard 1 Movement Numpad Keybinds 0 Fullscreen 1 Font 24/Smallcaps Map View 50x44 Zoom Use 0% Tactical HUD 1 Map Filters NONE Filters NONE Steam 1 RUN: a3b4c184-be61-48ed-a8f9-71077fe247e7